bitfinex/quotes_SOLUSD_20240716
["timestamp","ask_amount","ask_price","bid_price","bid_amount"]
[1721120585658,8.09810429,154.37,154.32,6.48]
[1721120586268,1.62000429,154.37,154.32,6.48]
[1721120586461,1.61998515,154.36,154.32,6.48]
[1721120586851,1.61998515,154.36,154.3,16.2014]
[1721120587177,1.61998515,154.36,154.28,7.1971956]
[1721120587178,6.4798,154.33,154.28,0.8279956]
[1721120587477,10.0,154.36,154.29,6.4812]
[1721120587478,1.62027349,154.32,154.29,6.4812]
[1721120588383,1.62027349,154.32,154.28,0.8279956]
[1721120588674,8.10037349,154.32,154.28,0.8279956]
[1721120588885,8.10082098,154.31,154.28,0.8279956]
[1721120589461,1.62042098,154.31,154.28,0.8279956]
[1721120589674,1.62052635,154.3,154.28,0.8279956]
[1721120589979,6.48,154.33,154.28,0.8279956]
[1721120589980,1.62046661,154.32,154.28,0.8279956]
[1721120590183,1.62046661,154.32,154.29,16.2025]
[1721120590483,1.62046661,154.32,154.29,22.6834]
[1721120590677,1.62046661,154.32,154.29,16.2025]
[1721120590889,1.62026601,154.33,154.3,6.4806]
[1721120591100,15.2287,154.38,154.31,6.4801]
[1721120591101,1.62019588,154.36,154.31,6.4801]
[1721120591393,1.62019588,154.36,154.29,16.2025]
[1721120591394,1.62006214,154.35,154.3,6.4808]
[1721120591566,8.09916214,154.35,154.29,16.2025]
[1721120591995,6.4796,154.33,154.29,16.2025]
[1721120592173,1.62030335,154.32,154.28,0.8279956]
[1721120592785,6.4796,154.34,154.28,0.8279956]
[1721120593088,1.62030451,154.33,154.29,6.4811]
[1721120593291,1.62030451,154.33,154.28,7.3096956]
[1721120593498,6.4792,154.34,154.28,7.3096956]
[1721120593689,8.09990615,154.33,154.28,7.3096956]
[1721120594076,8.09990615,154.33,154.29,6.4811]
[1721120594077,1.62030615,154.33,154.29,6.4811]
[1721120594278,1.62030566,154.32,154.29,6.4811]
[1721120594484,1.62030566,154.32,154.28,7.3095956]
[1721120594829,1.62030566,154.32,154.28,0.8279956]
[1721120595774,1.62030093,154.33,154.28,0.8279956]
[1721120595988,1.62030163,154.32,154.28,0.8279956]
[1721120596475,1.62030163,154.32,154.28,7.3095956]
[1721120596689,1.62030245,154.33,154.29,16.2031]
[1721120597001,1.62015374,154.32,154.29,16.2031]
[1721120597175,1.6201573,154.34,154.29,22.6843]
[1721120597378,1.6201573,154.34,154.29,16.2031]
[1721120597703,1.6201573,154.34,154.31,6.4801]
[1721120597907,1.6201573,154.34,154.29,16.2031]
[1721120598093,6.1588,154.37,154.29,16.2031]
[1721120598309,1.62022854,154.36,154.29,16.2031]
[1721120598595,6.4795,154.34,154.29,16.2031]
[1721120599182,6.4795,154.34,154.29,22.6841]
[1721120599378,6.4795,154.34,154.29,16.2031]
[1721120599696,6.4795,154.34,154.28,7.3095956]
[1721120600088,10.0,154.36,154.28,0.8279956]
[1721120600283,6.48,154.32,154.28,0.8279956]
[1721120600484,1.62042655,154.31,154.28,0.8279956]
[1721120600681,1.62042655,154.31,154.28,7.3096956]
[1721120600992,1.62042068,154.32,154.29,6.4812]
[1721120601194,1.62017852,154.34,154.3,6.4808]
[1721120601506,1.62017852,154.34,154.3,16.2012]
[1721120601686,1.61999467,154.36,154.33,16.199]
[1721120601883,1.61992255,154.35,154.32,6.4796]
[1721120602189,1.61995105,154.36,154.32,6.4796]
[1721120602395,1.61995105,154.36,154.33,6.4794]
[1721120602926,1.61980844,154.37,154.33,6.4794]
[1721120603903,1.619725,154.38,154.33,1.29578]
[1721120604205,1.61953542,154.41,154.31,38.66]
[1721120604505,1.61953542,154.41,154.38,6.4774]
[1721120604688,1.61917005,154.43,154.4,6.4762]
[1721120605283,1.61903178,154.45,154.4,6.4762]
[1721120606116,1.61903178,154.45,154.41,6.4761]
[1721120606405,1.61888398,154.44,154.39,6.4766]
[1721120606714,8.09388398,154.44,154.39,6.4766]
[1721120607284,1.61888398,154.44,154.39,6.4766]
[1721120607587,1.61904195,154.43,154.4,6.4766]
[1721120607920,1.61903599,154.45,154.38,16.1936]
[1721120608202,8.09373599,154.45,154.4,6.4766]
[1721120608710,1.61903836,154.44,154.4,6.4766]
[1721120609517,8.09403836,154.44,154.39,6.477]
[1721120610188,1.61903836,154.44,154.39,6.477]
[1721120610389,1.61903699,154.43,154.39,6.477]
[1721120610590,1.61903804,154.44,154.39,6.477]
[1721120611309,1.61903804,154.44,154.4,6.4762]
[1721120611512,8.0931313,154.46,154.4,6.4762]
[1721120611813,1.61893354,154.45,154.4,6.4762]
[1721120612193,8.09373354,154.45,154.38,16.1936]
[1721120612516,6.475,154.44,154.39,6.477]
[1721120612719,1.61893275,154.47,154.43,15.5623]
[1721120612892,1.61844232,154.53,154.44,1.29475385]
[1721120613209,1.61844232,154.53,154.44,16.1867]
[1721120613508,1.61844232,154.53,154.44,22.6616]
[1721120613690,6.4725,154.5,154.45,6.4744]
[1721120613891,1.61844618,154.49,154.45,6.4744]
[1721120614298,1.61844618,154.49,154.46,6.4738]
[1721120614500,1.61831122,154.54,154.45,1.29464898]
[1721120614711,6.472,154.51,154.45,6.4741]
[1721120615016,1.61836382,154.5,154.46,6.474]
[1721120616013,6.4717,154.52,154.44,16.1867]
[1721120616014,1.61836073,154.51,154.47,6.4735]
[1721120616209,1.61836073,154.51,154.48,6.4733]
[1721120616419,1.6182502,154.54,154.48,6.4733]
[1721120616623,6.4713,154.53,154.47,6.4736]
[1721120616803,8.08995272,154.52,154.47,6.4736]
[1721120617121,1.61825171,154.54,154.43,15.5623]
[1721120617321,1.61825171,154.54,154.5,6.4724]
[1721120618191,1.61788355,154.55,154.5,6.4724]
[1721120618612,1.61784847,154.54,154.5,6.4724]
[1721120618792,1.61784847,154.54,154.48,16.1824]
[1721120618993,6.4716,154.53,154.48,22.6555]
[1721120619216,1.61784847,154.54,154.49,6.4728]
[1721120620023,1.61789346,154.55,154.51,6.472]
[1721120620925,8.34905442,154.56,154.52,6.4716]
[1721120621418,6.7312025,154.56,154.52,6.4716]
[1721120621599,8.08759427,154.57,154.52,6.4716]
[1721120621798,6.47,154.56,154.5,16.1802]
[1721120622020,1.61775075,154.55,154.5,16.1802]
[1721120622590,1.61775075,154.55,154.52,6.4716]
[1721120622791,22.3326,154.59,154.52,6.4716]
[1721120622792,8.08721622,154.57,154.52,6.4716]
[1721120623008,1.61771622,154.57,154.52,6.4716]
[1721120623502,6.47,154.56,154.51,6.472]
[1721120623705,20.93787137,154.59,154.51,6.472]
[1721120623903,0.97115088,154.58,154.52,6.4716]
[1721120624101,0.97115088,154.58,154.53,6.471]
[1721120624621,6.4699,154.57,154.52,16.1782]
[1721120624927,0.97115088,154.56,154.52,16.1782]
[1721120625294,0.97115088,154.56,154.52,22.6498]
[1721120625721,0.97115088,154.56,154.52,16.1782]
[1721120625927,15.7811,154.59,154.53,1.29400858]
[1721120626103,0.97115088,154.61,154.56,6.4695]
[1721120626304,0.97115088,154.6,154.56,6.4695]
[1721120626500,0.97115088,154.62,154.56,6.4695]
[1721120626932,0.97115088,154.62,154.55,1.29382281]
[1721120627432,6.4682,154.61,154.56,6.4699]
[1721120627602,6.4682,154.61,154.55,1.29382281]
[1721120627603,0.97115088,154.6,154.55,7.76412281]
[1721120628308,0.97115088,154.61,154.56,6.4696]
[1721120628624,0.97115088,154.61,154.56,22.6434]
[1721120628826,0.97115088,154.62,154.57,6.4691]
[1721120629019,7.43865088,154.62,154.56,22.6438]
[1721120629402,6.468,154.61,154.56,22.6438]
[1721120629726,7.43945088,154.6,154.55,6.4703]
[1721120630235,0.97115088,154.59,154.55,6.4703]
[1721120630452,0.97115088,154.62,154.55,6.4703]
[1721120630608,0.97115088,154.62,154.54,6.4707]
[1721120630939,0.97115088,154.62,154.53,16.178]
[1721120631112,6.4703,154.56,154.5,6.4721]
[1721120631317,6.4695,154.58,154.53,6.4709]
[1721120631503,0.97115088,154.57,154.55,6.4703]
[1721120631830,65.2355,154.63,154.56,6.4697]
[1721120631831,0.97115088,154.59,154.56,6.4697]
[1721120632030,0.97115088,154.62,154.56,6.4697]
[1721120632203,7.43865088,154.62,154.57,6.4693]
[1721120632403,6.4678,154.61,154.55,6.4699]
[1721120632609,0.97115088,154.6,154.56,6.4698]
[1721120632932,7.43945088,154.6,154.55,6.4703]
[1721120633616,0.97115088,154.59,154.55,6.4703]
[1721120633934,0.97115088,154.6,154.55,6.4703]
[1721120635029,0.97115088,154.6,154.57,6.4695]
[1721120635240,0.97115088,154.61,154.57,6.4695]
[1721120635609,6.4674,154.62,154.56,6.4699]
[1721120635610,0.97115088,154.6,154.56,6.4699]
[1721120636228,7.43945088,154.6,154.55,6.4703]
[1721120636524,0.97115088,154.6,154.55,6.4703]
[1721120636728,0.97115088,154.6,154.54,16.1769]
[1721120636938,0.97115088,154.62,154.54,16.1769]
[1721120637230,6.468,154.61,154.56,6.4699]
[1721120637523,0.97115088,154.6,154.57,6.4695]
[1721120637724,6.4674,154.62,154.54,16.1769]
[1721120637725,6.4681,154.61,154.54,16.1769]
[1721120637927,0.97115088,154.6,154.56,6.4696]
[1721120638129,0.97115088,154.61,154.57,1.29388267]
[1721120638333,0.97115088,154.62,154.54,1.29367727]
[1721120638530,0.97115088,154.62,154.55,1.29359356]
[1721120638840,0.97115088,154.62,154.58,16.1718]
[1721120639629,0.97115088,154.62,154.58,22.6409]
[1721120640337,6.468,154.61,154.55,16.1758]
[1721120640717,0.97115088,154.6,154.55,16.1758]
[1721120640919,0.97115088,154.61,154.55,16.1758]
[1721120641640,0.97115088,154.62,154.57,16.1729]
[1721120641946,6.4674,154.63,154.58,6.469]
[1721120642228,7.43855088,154.62,154.57,22.6423]
[1721120642430,6.4684,154.6,154.55,6.4703]
[1721120642627,6.4675,154.62,154.57,6.4691]
[1721120642933,6.001,154.65,154.56,16.1749]
[1721120643315,6.4683,154.6,154.55,6.4703]
[1721120643644,0.97115088,154.59,154.56,6.4695]
[1721120643945,10.97115088,154.64,154.53,16.6122]
[1721120644105,6.4682,154.61,154.56,6.4699]
[1721120644310,0.97115088,154.6,154.56,6.4699]
[1721120644851,0.97115088,154.6,154.57,6.4695]
[1721120645337,0.97115088,154.61,154.59,6.4686]
[1721120645638,0.97115088,154.63,154.59,6.4686]
[1721120645835,0.97115088,154.63,154.6,6.4682]
[1721120646513,0.97115088,154.64,154.61,6.4677]
[1721120646715,0.97115088,154.64,154.62,6.4674]
[1721120646911,0.97115088,154.65,154.62,6.4674]
[1721120647117,7.69712857,154.66,154.63,6.467]
[1721120647450,7.69712857,154.66,154.62,6.4673]
[1721120648110,7.69712857,154.66,154.57,1.29335264]
[1721120648111,6.4666,154.64,154.57,16.1729]
[1721120648310,0.97115088,154.64,154.59,6.4683]
[1721120648520,0.97115088,154.64,154.57,16.1729]
[1721120648733,0.97115088,154.64,154.6,6.4682]
[1721120649833,7.43775088,154.64,154.59,6.4687]
[1721120650419,0.97115088,154.64,154.6,6.4682]
[1721120650626,0.97115088,154.65,154.6,16.1705]
[1721120650826,0.97115088,154.64,154.61,6.4678]
[1721120651649,13.19187769,154.66,154.61,6.4678]
[1721120651827,13.19187769,154.66,154.55,6.0465]
[1721120651828,7.69712857,154.66,154.63,16.1675]
[1721120652144,0.97115088,154.68,154.65,6.466]
[1721120652538,0.97115088,154.7,154.64,7.75966308]
[1721120653035,7.43525088,154.7,154.65,6.4659]
[1721120653238,0.97115088,154.7,154.65,16.1645]
[1721120653644,6.2263,154.73,154.65,16.1645]
[1721120653645,0.97115088,154.69,154.65,16.1645]
[1721120653846,0.97115088,154.72,154.63,15.2135]
[1721120654032,0.97115088,154.72,154.61,22.7076]
[1721120654220,6.4645,154.69,154.61,22.7076]
[1721120654416,0.97115088,154.68,154.61,22.7076]
[1721120654649,0.97115088,154.68,154.64,6.4664]
[1721120655140,0.97115088,154.68,154.65,6.4661]
[1721120655324,0.97115088,154.7,154.64,16.1664]
[1721120656217,7.43475088,154.72,154.66,22.6294]
[1721120656941,7.43475088,154.72,154.67,6.4652]
[1721120657141,7.43475088,154.72,154.66,16.1637]
[1721120657142,6.4638,154.71,154.66,16.1637]
[1721120657319,0.97115088,154.7,154.66,22.6294]
[1721120658245,0.97115088,154.71,154.68,6.4648]
[1721120659333,7.43445088,154.72,154.67,6.4653]
[1721120660233,0.97115088,154.72,154.68,6.4648]
[1721120660442,0.97115088,154.72,154.7,6.464]
[1721120660620,7.43355088,154.74,154.69,6.4641]
[1721120660945,0.97115088,154.73,154.69,6.4641]
[1721120661319,0.97115088,154.73,154.68,17.45418312]
[1721120661516,0.97115088,154.73,154.71,6.4636]
[1721120661919,0.97115088,154.73,154.7,6.464]
[1721120662139,16.3222,154.75,154.71,6.4636]
[1721120662639,0.97115088,154.74,154.71,6.4636]
[1721120662850,0.97115088,154.74,154.68,16.1614]
[1721120663221,6.4641,154.71,154.66,6.4657]
[1721120663448,0.97115088,154.7,154.65,16.1654]
[1721120663634,0.97115088,154.74,154.65,16.1654]
[1721120663941,6.4637,154.72,154.65,16.1654]
[1721120664117,7.43485088,154.71,154.65,16.1654]
[1721120664319,0.97115088,154.7,154.62,16.1683]
[1721120664947,6.4646,154.69,154.64,6.4663]
[1721120665130,0.97115088,154.68,154.67,6.4653]
[1721120665329,0.97115088,154.7,154.65,22.6304]
[1721120665920,0.97115088,154.7,154.65,16.1646]
[1721120666341,0.97115088,154.7,154.65,22.6308]
[1721120666567,7.43525088,154.7,154.65,22.6308]
[1721120667143,0.97115088,154.7,154.65,16.1646]
[1721120667539,0.97115088,154.7,154.61,15.6689]
[1721120667540,0.97115088,154.7,154.68,6.4646]
[1721120667753,0.97115088,154.74,154.68,6.4646]
[1721120667969,0.97115088,154.73,154.68,6.4646]
[1721120668343,6.4633,154.72,154.68,6.4646]
[1721120668550,0.97115088,154.71,154.65,6.4661]
[1721120668767,0.97115088,154.7,154.65,6.4661]
[1721120669076,6.4644,154.7,154.65,6.4661]
[1721120669372,0.97115088,154.69,154.63,22.6335]
[1721120670065,0.97115088,154.69,154.68,6.4649]
[1721120670253,0.97115088,154.74,154.71,6.4634]
[1721120670458,0.97115088,154.73,154.69,22.6252]
[1721120670773,0.97115088,154.73,154.65,22.6306]
[1721120670940,0.97115088,154.73,154.65,16.1649]
[1721120671439,0.97115088,154.73,154.68,16.1619]
[1721120671640,7.43435088,154.72,154.67,6.465]
[1721120671863,6.4637,154.71,154.65,6.4659]
[1721120672067,0.97115088,154.7,154.64,16.1657]
[1721120672380,61.5885,154.75,154.67,16.1631]
[1721120672381,0.97115088,154.72,154.67,16.1631]
[1721120672679,0.97115088,154.74,154.67,16.1631]
[1721120672863,0.97115088,154.73,154.67,16.1631]
[1721120673041,0.97115088,154.73,154.69,6.4644]
[1721120673239,0.97115088,154.73,154.7,16.1599]
[1721120673445,0.97115088,154.73,154.71,6.4636]
[1721120673881,0.97115088,154.74,154.71,6.4636]
[1721120674084,0.97115088,154.74,154.72,6.4632]
[1721120674402,0.97115088,154.75,154.71,6.4632]
[1721120674675,0.97115088,154.75,154.66,22.5582]
[1721120674854,0.97115088,154.78,154.68,38.66]
[1721120675063,0.97115088,154.79,154.78,6.4607]
[1721120675254,1.79914648,154.82,154.66,22.5582]
[1721120675484,6.4607,154.79,154.71,22.6221]
[1721120675682,50.45914648,154.82,154.71,16.1586]
[1721120675683,0.97115088,154.78,154.71,16.1586]
[1721120675855,6.4611,154.78,154.71,6.4636]
[1721120676054,0.97115088,154.77,154.74,6.4623]
[1721120676277,0.97115088,154.81,154.72,16.1574]
[1721120676483,0.97115088,154.81,154.75,6.4618]
[1721120676783,0.97115088,154.81,154.76,6.4613]
[1721120677280,0.97115088,154.81,154.75,16.154]
[1721120677775,0.97115088,154.81,154.69,38.66]
[1721120677776,6.4608,154.78,154.72,6.4632]
[1721120678084,0.97115088,154.77,154.72,6.4632]
[1721120678287,0.97115088,154.76,154.7,16.1596]
[1721120678765,0.97115088,154.79,154.7,16.1596]
[1721120678970,0.97115088,154.79,154.73,16.1566]
[1721120679661,0.97115088,154.81,154.76,6.4615]
[1721120680285,7.43075088,154.81,154.73,16.1566]
[1721120680862,6.46,154.8,154.73,22.6191]
[1721120681063,49.4879956,154.82,154.73,22.6191]
[1721120681064,7.43155088,154.79,154.73,22.6191]
[1721120681269,0.97115088,154.79,154.73,16.1566]
[1721120681569,0.97115088,154.79,154.75,6.4618]
[1721120681791,7.43155088,154.79,154.73,22.619]
[1721120681970,0.97115088,154.78,154.73,22.619]
[1721120682172,7.43185088,154.78,154.73,22.619]
[1721120682386,0.97115088,154.78,154.73,22.619]
[1721120682990,0.97115088,154.78,154.73,16.1566]
[1721120683189,0.97115088,154.81,154.74,6.4623]
[1721120683364,6.4599,154.8,154.74,6.4623]
[1721120683567,0.97115088,154.79,154.74,6.4623]
[1721120683876,7.43145088,154.79,154.74,6.4623]
[1721120684473,7.43145088,154.79,154.73,16.1566]
[1721120684474,0.97115088,154.81,154.73,16.1566]
[1721120684660,0.97115088,154.81,154.74,1.29222199]
[1721120685068,0.97115088,154.81,154.78,6.4607]
[1721120685799,0.97115088,154.81,154.77,6.4611]
[1721120686089,0.97115088,154.81,154.78,6.4607]
[1721120686693,0.97115088,154.81,154.76,22.6152]
[1721120687189,1.79914648,154.82,154.76,16.154]
[1721120687702,1.79914648,154.82,154.78,6.4607]
[1721120688380,1.79914648,154.82,154.78,22.6114]
[1721120688995,1.79914648,154.82,154.78,16.151]
[1721120688996,8.25824648,154.82,154.78,16.151]
[1721120689208,6.4596,154.81,154.76,6.4615]
[1721120689374,0.97115088,154.8,154.75,6.4616]
[1721120689702,0.97115088,154.79,154.76,6.4612]
[1721120689891,0.97115088,154.81,154.77,6.4611]
[1721120691499,0.97115088,154.81,154.78,6.4607]
[1721120691803,0.97115088,154.81,154.72,23.26125473]
[1721120691804,1.79914648,154.82,154.79,6.4603]
[1721120692369,1.79914648,154.82,154.8,6.4597]
[1721120692810,0.8279956,154.82,154.8,6.4597]
[1721120693396,0.8279956,154.82,154.77,16.1521]
[1721120693607,0.8279956,154.82,154.8,16.1496]
[1721120693774,0.8279956,154.82,154.81,1.29176749]
[1721120693981,0.8279956,154.82,154.8,16.1496]
[1721120694497,0.8279956,154.82,154.81,6.4595]
[1721120697877,0.8279956,154.82,154.81,7.75109023]
[1721120698295,0.8279956,154.82,154.81,6.4595]
[1721120699608,0.8279956,154.82,154.8,16.1496]
[1721120699812,0.8279956,154.82,154.81,6.4595]
[1721120702681,0.8279956,154.82,154.81,7.75114115]
[1721120703595,0.8279956,154.82,154.81,6.4595]
[1721120704585,0.8279956,154.82,154.8,22.6094]
[1721120704898,0.8279956,154.82,154.8,16.1496]
[1721120705521,0.8279956,154.82,154.81,6.4595]
[1721120707215,0.8279956,154.82,154.8,16.1496]
[1721120707424,7.2870956,154.82,154.77,6.4608]
[1721120707593,0.97115088,154.81,154.71,59.816]
[1721120707929,0.8279956,154.82,154.78,16.1516]
[1721120708417,0.8279956,154.82,154.81,6.4595]
[1721120708929,0.8279956,154.82,154.71,59.816]
[1721120709137,0.8279956,154.82,154.81,6.4595]
[1721120710692,0.8279956,154.82,154.81,7.75106439]
[1721120711197,0.8279956,154.82,154.81,24.12606439]
[1721120711720,0.8279956,154.82,154.81,22.8345]
[1721120712223,0.0407217,154.84,154.83,6.4586]
[1721120712515,0.0407217,154.84,154.83,22.6053]
[1721120717023,2.17e-05,154.84,154.83,37.6332]
[1721120717194,2.17e-05,154.84,154.83,76.2932]
[1721120718424,24.25647657,154.99,154.96,6.4532]
[1721120718723,0.97115088,154.98,154.96,22.5863]
[1721120718931,7.42385088,154.98,154.93,6.4544]
[1721120719232,0.97115088,154.96,154.92,16.1373]
[1721120719599,0.97115088,154.96,154.94,6.454]
[1721120719811,0.97115088,154.96,154.92,22.5918]
[1721120720010,0.97115088,154.98,154.94,6.454]
[1721120720231,1.79914648,154.97,154.92,16.1373]
[1721120720406,1.79914648,154.97,154.93,6.4545]
[1721120720606,1.79914648,154.97,154.92,16.1373]
[1721120720807,1.79914648,154.97,154.94,6.4538]
[1721120721027,1.79914648,154.97,154.92,16.1373]
[1721120721028,0.8279956,154.97,154.95,6.4536]
[1721120721324,0.8279956,154.97,154.96,6.4532]
[1721120722700,0.8279956,154.97,154.95,16.1339]
[1721120722926,0.8279956,154.97,154.91,16.1379]
[1721120723629,0.8279956,154.97,154.94,16.135]
[1721120723997,0.8279956,154.97,154.96,6.4532]
[1721120727930,0.8279956,154.97,154.96,7.74328687]
[1721120728131,0.8279956,154.97,154.96,6.4532]
[1721120728301,0.97115088,155.06,154.96,7.68048254]
[1721120728503,6.72816461,155.07,154.96,7.68048254]
[1721120728504,7.69931549,155.07,155.02,6.4507]
[1721120728814,0.97115088,155.07,155.03,6.4503]
[1721120729137,0.97115088,155.07,155.03,6.4501]
[1721120729322,13.17324893,155.1,155.03,6.4499]
[1721120729323,6.4478,155.09,155.03,6.4499]
[1721120729501,0.97115088,155.1,155.02,16.1265]
[1721120729700,6.0206,155.12,155.06,16.1224]
[1721120729903,6.0206,155.12,155.07,7.73772465]
[1721120730120,6.0206,155.12,155.06,16.1224]
[1721120730121,0.97115088,155.11,155.06,16.1224]
[1721120730320,0.97115088,155.1,155.04,6.4497]
[1721120730633,0.97115088,155.1,155.03,1.28975177]
[1721120730847,0.97115088,155.1,155.02,16.1259]
[1721120731129,6.4482,155.09,155.03,6.45]
[1721120731434,6.4488,155.07,155.02,22.5766]
[1721120731739,0.97115088,155.06,155.02,22.5766]
[1721120731930,0.97115088,155.11,155.03,6.4503]
[1721120732119,0.97115088,155.1,155.03,6.4503]
[1721120732526,0.97115088,155.1,155.02,16.1259]
[1721120732910,0.97115088,155.1,154.98,16.13]
[1721120733110,6.4495,155.05,154.99,6.4518]
[1721120733432,0.97115088,155.09,154.96,6.3904]
[1721120733646,0.8279956,155.13,155.05,6.4494]
[1721120733647,7.41815088,155.12,155.05,6.4494]
[1721120733937,6.4471,155.11,155.05,6.4494]
[1721120734113,0.97115088,155.1,155.06,6.4487]
[1721120734507,7.41865088,155.1,155.04,6.4497]
[1721120734817,6.4479,155.09,155.04,6.4498]
[1721120735015,0.97115088,155.08,155.04,6.4498]
[1721120735336,0.97115088,155.08,155.05,6.4491]
[1721120735521,0.97115088,155.1,155.06,6.4487]
[1721120735724,0.97115088,155.1,155.03,16.1258]
[1721120735933,0.97115088,155.1,155.04,6.4495]
[1721120736425,0.97115088,155.12,155.05,6.4495]
[1721120736632,6.4471,155.11,155.06,6.4489]
[1721120736824,0.97115088,155.1,155.06,6.4489]
[1721120737332,0.97115088,155.1,154.96,25.8504]
[1721120737534,8.24564648,155.13,155.08,6.4482]
[1721120738036,8.24564648,155.13,155.07,6.4486]
[1721120738415,6.4467,155.12,155.07,6.4486]
[1721120738635,0.97115088,155.11,155.06,16.1227]
[1721120738813,7.41865088,155.1,155.06,16.1227]
[1721120739014,0.8279956,155.13,155.06,22.5717]
[1721120739318,0.97115088,155.12,155.06,22.5717]
[1721120739505,0.97115088,155.12,155.08,6.4481]
[1721120740329,0.97115088,155.12,155.09,6.4478]
[1721120740510,1.79914648,155.13,155.07,1.28951751]
[1721120740710,1.79914648,155.13,155.09,6.4474]
[1721120740935,8.24564648,155.13,155.08,22.5678]
[1721120741112,6.4469,155.12,155.04,16.124]
[1721120741323,6.4469,155.12,155.0,6.3424]
[1721120741324,0.97115088,155.11,155.0,6.3424]
[1721120741548,6.4467,155.12,155.07,6.4485]
[1721120741748,0.97115088,155.12,155.0,6.3424]
[1721120742244,1.79914648,155.13,155.09,6.4478]
[1721120742750,1.79914648,155.13,155.0,6.3424]
[1721120742751,1.79914648,155.13,155.1,6.4474]
[1721120743353,0.8279956,155.13,155.12,6.4466]
[1721120743538,0.8279956,155.13,155.11,16.1174]
[1721120743854,0.8279956,155.13,155.08,6.4478]
[1721120744060,0.97115088,155.12,155.07,6.4486]
[1721120744225,0.97115088,155.12,155.07,16.1208]
[1721120744426,0.97115088,155.12,155.09,6.4477]
[1721120744655,0.97115088,155.12,155.07,16.1208]
[1721120744826,0.8279956,155.13,155.07,16.1208]
[1721120745028,0.8279956,155.13,155.11,6.4469]
[1721120745659,0.8279956,155.13,155.1,16.1185]
[1721120745835,0.97115088,155.12,155.07,16.1217]
[1721120746038,7.2741956,155.13,155.08,6.4478]
[1721120746435,0.8279956,155.13,155.07,16.1217]
[1721120746640,0.8279956,155.13,155.07,22.57]
[1721120746842,0.8279956,155.13,155.03,16.1248]
[1721120747043,0.97115088,155.12,155.03,16.1248]
[1721120747257,0.97115088,155.12,155.01,16.4443]
[1721120747493,0.97115088,155.12,155.05,16.123]
[1721120747754,6.4474,155.1,155.05,22.5724]
[1721120747939,6.447,155.11,155.06,6.449]
[1721120748133,0.97115088,155.1,155.07,6.4486]
[1721120748535,0.97115088,155.11,155.08,6.4479]
[1721120748749,0.97115088,155.11,155.07,6.4486]
[1721120749153,0.97115088,155.1,155.05,16.123]
[1721120749334,0.8279956,155.13,155.06,6.449]
[1721120749335,6.447,155.11,155.06,6.449]
[1721120749530,0.97115088,155.1,155.06,6.449]
[1721120749728,0.8279956,155.13,155.08,6.4481]
[1721120749928,0.97115088,155.12,155.08,6.4481]
[1721120750239,0.97115088,155.12,155.09,6.4477]
[1721120750434,0.97115088,155.12,155.08,6.4482]
[1721120750851,0.97115088,155.12,155.01,16.4443]
[1721120751058,0.8279956,155.13,155.1,6.4474]
[1721120751365,0.8279956,155.13,155.12,6.4466]
[1721120751855,0.8279956,155.13,155.02,38.39]
[1721120752066,0.8279956,155.13,155.12,6.4466]
[1721120757139,0.8279956,155.13,155.1,39.1913]
[1721120757140,0.97115088,155.24,155.21,6.4428]
[1721120757537,0.97115088,155.23,155.2,16.1077]
[1721120757771,0.97115088,155.23,155.1,23.0736]
[1721120757772,6.4431,155.21,155.1,23.0736]
[1721120757947,0.97115088,155.2,155.1,23.0736]
[1721120758438,0.97115088,155.2,155.06,22.6399]
[1721120758644,6.4445,155.17,155.12,6.4462]
[1721120758840,0.97115088,155.16,155.06,22.6399]
[1721120759064,10.0,155.19,155.07,1.28933981]
[1721120759271,6.4452,155.16,155.11,6.447]
[1721120759482,23.51665088,155.15,155.09,6.4474]
[1721120759767,0.97115088,155.14,155.09,6.4474]
[1721120760161,0.97115088,155.14,155.08,16.1197]
[1721120760783,0.97115088,155.14,155.01,22.3553]
[1721120761352,0.97115088,155.14,155.02,1.28940636]
[1721120762091,0.97115088,155.14,155.02,44.41940636]
[1721120762464,22.5455,155.15,155.13,6.4462]
[1721120762665,23.53585088,155.19,155.13,6.4462]
[1721120762969,6.4454,155.15,155.02,43.13]
[1721120763173,0.97115088,155.14,155.1,6.4474]